bitfinex/quotes_SOLUSD_20250527
["timestamp","ask_amount","ask_price","bid_price","bid_amount"]
[1748347590697,0.56593095,176.7,176.66,0.14216157]
[1748347590998,1.98066868,176.71,176.66,0.14216157]
[1748347592188,0.56589893,176.71,176.66,0.14216157]
[1748347592891,1.9803565,176.74,176.66,0.14216157]
[1748347593085,1.9803565,176.74,176.68,0.14216157]
[1748347593291,1.9803565,176.74,176.7,18.79181043]
[1748347593493,1.9803565,176.74,176.69,44.64]
[1748347593494,1.9803565,176.74,176.69,9.36]
[1748347593698,12.27035175,176.73,176.69,9.36]
[1748347594013,12.27035175,176.73,176.69,44.64]
[1748347594597,12.27035175,176.72,176.69,44.64]
[1748347594786,26.0,176.7,176.69,44.64]
[1748347594990,26.56593095,176.7,176.69,9.36]
[1748347596589,0.56593095,176.7,176.69,9.36]
[1748347597107,38.8362827,176.7,176.69,9.36]
[1748347598102,40.41456535,176.7,176.69,9.36]
[1748347598678,44.65904752,176.7,176.66,35.28]
[1748347598876,12.2491344,176.68,176.66,35.28]
[1748347599115,38.81516145,176.67,176.64,9.36]
[1748347599275,12.2491344,176.65,176.64,9.36]
[1748347599789,12.2491344,176.66,176.64,9.36]
[1748347599973,26.56602705,176.67,176.64,9.36]
[1748347600180,12.2491344,176.66,176.64,9.36]
[1748347600799,12.81522554,176.65,176.64,9.36]
[1748347601183,0.56609114,176.65,176.64,9.36]
[1748347601807,12.81522554,176.65,176.64,9.36]
[1748347603012,0.56609114,176.65,176.64,9.36]
[1748347603789,12.81522554,176.65,176.64,9.36]
[1748347604405,38.81522554,176.65,176.64,9.36]
[1748347605591,26.56609114,176.65,176.64,9.36]
[1748347605790,26.56609114,176.65,176.64,9.50216157]
[1748347606010,0.56609114,176.65,176.64,40.40094483]
[1748347609526,0.56609114,176.65,176.64,9.36]
[1748347609905,0.56609114,176.65,176.64,21.6091344]
[1748347610221,0.56609114,176.65,176.64,40.40094483]
[1748347612238,1.41506456,176.68,176.66,0.14216157]
[1748347612389,1.41506456,176.68,176.67,35.28]
[1748347613428,1.41506456,176.68,176.67,47.67129597]
[1748347613738,1.41506456,176.68,176.67,35.42216157]
[1748347614411,0.56596298,176.69,176.68,0.14216157]
[1748347614723,0.56596298,176.69,176.68,12.39129597]
[1748347614942,0.56596298,176.69,176.67,47.5291344]
[1748347615096,0.56596298,176.69,176.67,35.28]
[1748347615639,0.56596298,176.69,176.67,73.5291344]
[1748347615808,0.56596298,176.69,176.67,61.28]
[1748347616002,0.56596298,176.69,176.68,12.2491344]
[1748347616202,1.41480828,176.71,176.68,12.2491344]
[1748347616991,1.41480828,176.71,176.69,12.2491344]
[1748347619202,0.56583488,176.73,176.7,12.39129597]
[1748347619400,0.56583488,176.73,176.72,12.2491344]
[1748347619605,0.56583488,176.73,176.71,47.5091344]
[1748347619807,0.56583488,176.73,176.71,35.26]
[1748347620341,0.56583488,176.73,176.71,47.5091344]
[1748347620651,0.56583488,176.73,176.71,35.26]
[1748347621004,1.9804221,176.73,176.7,35.26]
[1748347622119,14.2295565,176.73,176.7,35.26]
[1748347623114,1.9804221,176.73,176.7,35.26]
[1748347624322,1.9804221,176.73,176.72,12.2491344]
[1748347625731,0.56583488,176.73,176.72,12.39129597]
[1748347626232,0.56583488,176.73,176.72,40.38094483]
[1748347626411,1.41440724,176.76,176.72,40.38094483]
[1748347626412,1.41440724,176.76,176.74,0.14216157]
[1748347626719,1.41440724,176.76,176.75,35.26]
[1748347627516,1.41440724,176.76,176.75,47.5091344]
[1748347629510,1.41440724,176.76,176.75,47.65129597]
[1748347630203,1.41440724,176.76,176.75,47.5091344]
[1748347630410,1.41440724,176.76,176.75,47.65129597]
[1748347631628,1.97974998,176.79,176.75,47.65129597]
[1748347631831,1.97974998,176.79,176.76,12.2491344]
[1748347632019,1.97974998,176.79,176.75,47.65129597]
[1748347632933,1.97974998,176.79,176.75,35.26]
[1748347633256,12.2491344,176.78,176.75,35.26]
[1748347633417,0.56567485,176.78,176.75,35.26]
[1748347634836,1.97986197,176.78,176.75,35.24]
[1748347635333,1.97986197,176.78,176.77,12.2491344]
[1748347635707,1.97986197,176.78,176.76,12.2491344]
[1748347636337,1.97986197,176.78,176.77,12.39129597]
[1748347636736,1.97952603,176.81,176.77,12.39129597]
[1748347636943,1.97952603,176.81,176.78,12.2491344]
[1748347640020,1.97952603,176.81,176.77,12.39129597]
[1748347640216,1.97952603,176.81,176.79,12.2491344]
[1748347640416,1.97952603,176.81,176.79,35.24]
[1748347640622,1.97952603,176.81,176.8,12.2491344]
[1748347641039,2.82758977,176.83,176.8,12.2491344]
[1748347641340,2.82758977,176.83,176.79,47.4891344]
[1748347641725,2.82758977,176.83,176.8,12.2491344]
[1748347641932,2.82758977,176.83,176.79,35.24]
[1748347641933,1.97919022,176.84,176.81,12.2491344]
[1748347642146,1.97919022,176.84,176.82,12.2491344]
[1748347643130,1.4137073,176.84,176.82,12.2491344]
[1748347644173,1.4137073,176.84,176.79,61.24]
[1748347644458,1.4137073,176.84,176.8,12.2491344]
[1748347645020,1.4137073,176.84,176.8,47.4891344]
[1748347645436,1.97919022,176.84,176.8,47.4891344]
[1748347646960,1.4137073,176.84,176.8,47.4891344]
[1748347649052,1.4137073,176.84,176.8,35.24]
[1748347649236,12.2491344,176.83,176.78,9.48216157]
[1748347649431,12.2491344,176.83,176.79,35.22]
[1748347649836,1.4137073,176.84,176.79,47.4691344]
[1748347650037,13.6628417,176.84,176.79,47.4691344]
[1748347650250,13.6628417,176.84,176.8,12.2491344]
[1748347650251,1.4137073,176.84,176.8,12.2491344]
[1748347650450,1.4137073,176.84,176.79,35.22]
[1748347650451,13.6628417,176.84,176.79,47.4691344]
[1748347651133,17.05573923,176.84,176.79,47.4691344]
[1748347653770,17.05573923,176.84,176.79,35.22]
[1748347654068,17.05573923,176.84,176.79,47.4691344]
[1748347655283,4.80660483,176.84,176.79,47.4691344]
[1748347655454,17.05573923,176.84,176.79,47.4691344]
[1748347658663,4.24112191,176.84,176.79,47.4691344]
[1748347658863,4.24112191,176.84,176.8,12.2491344]
[1748347660681,4.80660483,176.84,176.8,12.2491344]
[1748347662073,12.2491344,176.81,176.78,9.34]
[1748347662295,12.2491344,176.79,176.73,9.34]
[1748347662579,0.56577086,176.75,176.73,9.34]
[1748347662749,12.81490526,176.75,176.73,9.34]
[1748347662945,12.2491344,176.74,176.68,9.34]
[1748347663171,12.2491344,176.72,176.68,44.56]
[1748347663381,12.2491344,176.72,176.68,70.56]
[1748347663681,12.2491344,176.72,176.68,44.56]
[1748347663856,12.2491344,176.72,176.68,35.34]
[1748347664674,0.56589893,176.71,176.7,12.2491344]
[1748347665474,0.56589893,176.71,176.69,12.2491344]
[1748347665781,12.81503333,176.71,176.68,35.34]
[1748347665978,12.81503333,176.71,176.68,9.34]
[1748347666950,12.2491344,176.69,176.68,9.34]
[1748347667187,12.2491344,176.69,176.64,12.2491344]
[1748347667398,12.2491344,176.69,176.64,38.2491344]
[1748347667561,4.8101409,176.71,176.64,26.0]
[1748347667562,12.2491344,176.67,176.64,26.0]
[1748347668078,12.2491344,176.68,176.64,26.0]
[1748347668581,4.8101409,176.71,176.64,38.2491344]
[1748347668582,12.2491344,176.69,176.64,38.2491344]
[1748347668897,1.98098255,176.68,176.64,38.2491344]
[1748347669277,1.98098255,176.68,176.67,12.2491344]
[1748347669595,1.98098255,176.68,176.66,12.2491344]
[1748347670585,1.98098255,176.68,176.65,12.39129597]
[1748347670772,1.41498754,176.68,176.65,12.39129597]
[1748347671162,1.41498754,176.68,176.66,12.2491344]
[1748347671363,1.41498754,176.68,176.65,12.39129597]
[1748347673387,1.41498754,176.68,176.64,73.4891344]
[1748347673879,1.41498754,176.68,176.65,12.2491344]
[1748347674091,1.41498754,176.68,176.64,26.0]
[1748347674391,12.2491344,176.65,176.59,35.24]
[1748347674581,12.2491344,176.64,176.6,26.0]
[1748347674904,12.2491344,176.66,176.61,12.2491344]
[1748347675376,12.2491344,176.66,176.6,38.2491344]
[1748347675580,2.83061594,176.64,176.61,12.2491344]
[1748347675801,2.83061594,176.64,176.6,26.0]
[1748347675962,2.83061594,176.64,176.61,12.2491344]
[1748347676163,15.07975034,176.64,176.59,47.4891344]
[1748347676474,17.06118149,176.64,176.59,73.4891344]
[1748347676669,12.2491344,176.63,176.59,61.24]
[1748347676973,4.81204709,176.64,176.59,38.2491344]
[1748347676974,17.06118149,176.64,176.59,38.2491344]
[1748347677287,4.81204709,176.64,176.6,12.2491344]
[1748347677670,4.81204709,176.64,176.61,12.2491344]
[1748347678192,4.81204709,176.64,176.6,47.4891344]
[1748347680670,2.83061594,176.64,176.6,35.24]
[1748347680998,2.83061594,176.64,176.6,47.4891344]
[1748347681165,12.2491344,176.66,176.6,47.4891344]
[1748347681366,17.06036437,176.67,176.62,12.2491344]
[1748347681580,4.81122997,176.67,176.64,12.2491344]
[1748347681792,4.81122997,176.67,176.65,35.24]
[1748347682310,4.81122997,176.67,176.65,47.4891344]
[1748347682702,4.24520292,176.67,176.65,47.4891344]
[1748347683198,1.41506764,176.67,176.66,12.2491344]
[1748347683502,1.41506764,176.67,176.65,35.24]
[1748347683810,1.41506764,176.67,176.66,12.2491344]
[1748347684702,1.98075834,176.7,176.65,47.4891344]
[1748347686434,1.98075834,176.7,176.66,12.2491344]
[1748347686783,1.98075834,176.7,176.65,35.24]
[1748347686986,14.22989274,176.7,176.65,47.4891344]
[1748347687513,1.98075834,176.7,176.66,12.2491344]
[1748347688090,1.98075834,176.7,176.67,12.2491344]
[1748347688911,1.41482739,176.7,176.65,35.24]
[1748347689116,1.41482739,176.7,176.66,12.2491344]
[1748347689297,12.2491344,176.69,176.64,21.5891344]
[1748347689487,12.2491344,176.69,176.64,56.9091344]
[1748347690609,1.98098255,176.68,176.65,12.2491344]
[1748347691815,1.98098255,176.68,176.66,12.2491344]
[1748347692320,1.98098255,176.68,176.65,47.5491344]
[1748347692506,1.41498754,176.68,176.65,35.3]
[1748347693114,1.41498754,176.68,176.64,9.34]
[1748347693293,12.2491344,176.67,176.6,26.0]
[1748347693615,12.2491344,176.65,176.61,35.28]
[1748347693925,12.2491344,176.65,176.59,9.34]
[1748347694090,12.2491344,176.65,176.59,21.5891344]
[1748347694287,12.2491344,176.65,176.6,12.2491344]
[1748347694815,1.98143115,176.64,176.6,12.2491344]
[1748347696098,1.98143115,176.64,176.62,12.2491344]
[1748347696490,1.98143115,176.64,176.61,12.2491344]
[1748347696719,1.41530797,176.64,176.6,12.2491344]
[1748347697908,1.98143115,176.64,176.6,12.2491344]
[1748347698411,1.98143115,176.64,176.59,56.8891344]
[1748347698412,4.81204709,176.64,176.59,56.8891344]
[1748347698720,17.06118149,176.64,176.59,21.5891344]
[1748347699025,17.06118149,176.64,176.59,56.8491344]
[1748347699613,12.2491344,176.63,176.59,44.6]
[1748347700207,0.56618729,176.62,176.59,44.6]
[1748347702112,0.56618729,176.62,176.59,56.8491344]
[1748347702702,1.98154332,176.63,176.59,21.5891344]
[1748347703026,1.98154332,176.63,176.59,56.8491344]
[1748347705915,12.2491344,176.61,176.56,12.2491344]
[1748347706232,12.2491344,176.61,176.57,35.26]
[1748347706404,12.2491344,176.6,176.56,35.26]
[1748347706606,12.2491344,176.61,176.56,12.2491344]
[1748347706799,12.2491344,176.61,176.56,47.5091344]
[1748347707596,1.98176773,176.61,176.58,12.2491344]
[1748347707798,1.98176773,176.61,176.6,12.2491344]
[1748347707995,1.98176773,176.61,176.6,12.39129597]
[1748347708230,0.56621935,176.61,176.6,12.39129597]
[1748347710731,2.83029548,176.66,176.61,0.14216157]
[1748347710939,2.83029548,176.66,176.62,35.26]
[1748347711139,2.83029548,176.66,176.62,12.2491344]
[1748347711452,12.2491344,176.63,176.59,9.36]
[1748347711660,12.2491344,176.64,176.59,21.6091344]
[1748347712160,2.83029548,176.66,176.59,35.36]
[1748347712360,1.98109469,176.67,176.65,12.2491344]
[1748347712715,1.41506764,176.67,176.64,12.2491344]
[1748347713329,1.41506764,176.67,176.65,12.2491344]
[1748347714213,4.24520292,176.67,176.65,12.2491344]
[1748347714415,4.24520292,176.67,176.66,12.2491344]
[1748347714841,4.24520292,176.67,176.65,12.2491344]
[1748347717242,0.56599501,176.68,176.66,12.39129597]
[1748347717425,0.56599501,176.68,176.67,12.39129597]
[1748347717854,1.41463365,176.73,176.7,26.0]
[1748347718038,1.41463365,176.73,176.72,12.2491344]
[1748347719256,149.1,176.78,176.72,12.2491344]
[1748347719257,1.97997397,176.77,176.72,12.2491344]
[1748347719466,1.97997397,176.77,176.75,12.2491344]
[1748347719629,1.97997397,176.77,176.76,12.2491344]
[1748347719834,1.97997397,176.77,176.75,12.2491344]
[1748347720738,4.80850822,176.77,176.74,12.2491344]
[1748347720936,17.05764262,176.77,176.72,12.2491344]
[1748347721258,4.80850822,176.77,176.73,12.2491344]
[1748347722462,4.80850822,176.77,176.71,44.6]
[1748347722463,12.2491344,176.75,176.71,9.34]
[1748347722662,12.2491344,176.74,176.71,9.34]
[1748347722945,12.2491344,176.74,176.69,12.2491344]
[1748347723321,12.2491344,176.74,176.68,35.26]
[1748347723322,14.2295565,176.73,176.68,12.2491344]
[1748347723522,12.2491344,176.71,176.66,9.34]
[1748347723747,12.2491344,176.71,176.66,21.5891344]
[1748347724045,12.2491344,176.71,176.66,56.8491344]
[1748347724247,4.80959654,176.73,176.66,44.6]
[1748347724548,1.9804221,176.73,176.71,12.2491344]
[1748347724951,1.9804221,176.73,176.72,12.2491344]
[1748347725253,1.98008598,176.76,176.72,12.2491344]
[1748347726166,1.98008598,176.76,176.71,35.26]
[1748347726330,1.98008598,176.76,176.72,12.2491344]
[1748347726936,1.98008598,176.76,176.75,12.2491344]
[1748347727151,1.98008598,176.76,176.74,12.2491344]
[1748347727345,1.98008598,176.76,176.71,35.26]
[1748347727346,1.98008598,176.76,176.75,12.2491344]
[1748347728534,1.98008598,176.76,176.74,12.2491344]
[1748347731455,4.80811216,176.79,176.74,12.2491344]
[1748347733025,17.05724656,176.79,176.73,12.39129597]
[1748347733348,4.80811216,176.79,176.75,12.2491344]
[1748347734344,1.97974998,176.79,176.77,12.2491344]
[1748347734533,1.97974998,176.79,176.78,12.2491344]
[1748347735546,14.22854848,176.82,176.78,12.2491344]
[1748347735752,14.22854848,176.82,176.77,12.2491344]
[1748347737136,17.05628289,176.82,176.76,35.24]
[1748347737332,12.2491344,176.81,176.76,47.4891344]
[1748347737565,1.97963799,176.8,176.76,47.4891344]
[1748347738046,1.97963799,176.8,176.76,35.24]
[1748347738244,1.97963799,176.8,176.76,47.4891344]
[1748347738631,1.97963799,176.8,176.77,12.2491344]
[1748347739637,1.97963799,176.8,176.76,35.24]
[1748347739638,1.41402714,176.8,176.76,35.24]
[1748347739839,1.41402714,176.8,176.75,38.2491344]
[1748347740160,1.41402714,176.8,176.77,12.2491344]
[1748347741040,1.41402714,176.8,176.79,12.2491344]
[1748347741241,1.41402714,176.8,176.76,18.79181043]
[1748347741457,1.41402714,176.8,176.79,12.2491344]
[1748347741644,1.41402714,176.8,176.76,18.79181043]
[1748347741844,2.82773441,176.82,176.75,61.22]
[1748347741845,15.07686881,176.82,176.75,61.22]
[1748347742065,15.07686881,176.82,176.77,12.2491344]
[1748347742269,2.82773441,176.82,176.77,12.2491344]
[1748347742443,15.07686881,176.82,176.77,12.2491344]
[1748347743246,12.2491344,176.81,176.75,26.0]
[1748347743451,12.2491344,176.81,176.76,12.2491344]
[1748347743763,1.97974998,176.79,176.75,61.22]
[1748347743949,14.22888438,176.79,176.75,61.22]
[1748347744150,1.97974998,176.79,176.75,73.4691344]
[1748347744560,1.97974998,176.79,176.75,12.2491344]
[1748347746764,1.97974998,176.79,176.76,12.2491344]
[1748347747267,1.97974998,176.79,176.77,12.2491344]
[1748347747773,1.97974998,176.79,176.77,47.4691344]
[1748347747941,1.41410713,176.79,176.78,12.2491344]
[1748347749665,4.80714849,176.82,176.78,12.2491344]
[1748347749856,4.80714849,176.82,176.77,47.4691344]
[1748347750055,17.05628289,176.82,176.77,47.4691344]
[1748347750371,17.05628289,176.82,176.76,47.4691344]
[1748347750372,12.2491344,176.81,176.76,47.4691344]
[1748347750570,12.2491344,176.81,176.76,35.22]
[1748347750742,12.2491344,176.8,176.75,12.2491344]
[1748347750947,12.2491344,176.81,176.75,47.4691344]
[1748347751874,4.80769228,176.8,176.75,47.4691344]
[1748347752796,4.80769228,176.8,176.76,12.2491344]
[1748347753273,17.05682668,176.8,176.74,26.0]
[1748347753488,12.2491344,176.78,176.72,56.8091344]
[1748347753688,4.80850822,176.77,176.69,18.64964886]
[1748347753986,12.2491344,176.7,176.62,9.34]
[1748347754290,12.2491344,176.69,176.64,12.2491344]
[1748347754448,26.0,176.74,176.63,26.0]
[1748347754449,12.2491344,176.68,176.63,48.0291344]
[1748347754647,12.2491344,176.68,176.62,21.5891344]
[1748347754877,12.2491344,176.68,176.62,57.3491344]
[1748347755061,12.2491344,176.68,176.63,48.0091344]
[1748347755258,1.5986,176.7,176.63,48.0091344]
[1748347755461,12.2491344,176.72,176.66,12.2491344]
[1748347755659,12.2491344,176.71,176.66,12.2491344]
[1748347755880,14.22989274,176.7,176.65,12.2491344]
[1748347756182,14.22989274,176.7,176.65,48.0291344]
[1748347756765,14.22989274,176.7,176.66,12.2491344]
[1748347756766,1.98075834,176.7,176.66,12.2491344]
[1748347757080,1.98075834,176.7,176.65,48.0291344]
[1748347757985,1.98075834,176.7,176.66,12.39129597]
[1748347759289,1.98075834,176.7,176.66,0.14216157]
[1748347759768,1.98075834,176.7,176.65,48.0291344]
[1748347760491,12.2491344,176.71,176.65,48.0291344]
[1748347760691,15.07858536,176.72,176.66,12.39129597]
[1748347760872,2.82945096,176.72,176.66,12.39129597]
[1748347761189,12.2491344,176.71,176.66,12.2491344]
[1748347761391,12.2491344,176.69,176.64,26.0]
[1748347761572,12.2491344,176.68,176.64,26.0]
[1748347761775,12.2491344,176.69,176.64,26.0]
[1748347762476,1.98098255,176.68,176.64,26.0]
[1748347762678,1.98098255,176.68,176.63,48.0091344]
[1748347762679,14.23011695,176.68,176.63,48.0091344]
[1748347763967,17.06009204,176.68,176.62,35.34]
[1748347764173,17.06009204,176.68,176.62,83.3291344]
[1748347764396,17.06009204,176.68,176.63,12.2491344]
[1748347765281,4.81095764,176.68,176.63,12.2491344]
[1748347765488,17.06009204,176.68,176.63,12.2491344]
[1748347766089,17.06009204,176.68,176.62,45.08]
[1748347766278,17.06009204,176.68,176.63,12.2491344]
[1748347766466,12.2491344,176.67,176.62,57.3291344]
[1748347766789,1.98120683,176.66,176.62,57.2891344]
[1748347768992,1.41514774,176.66,176.62,47.5891344]
[1748347769191,1.41514774,176.66,176.62,83.2691344]
[1748347770003,1.41514774,176.66,176.63,12.2491344]
[1748347770188,1.41514774,176.66,176.62,9.34]
[1748347771209,1.98120683,176.66,176.62,21.5891344]
[1748347777106,1.41514774,176.66,176.62,21.5891344]
[1748347777685,1.41514774,176.66,176.63,12.2491344]
[1748347781918,1.41514774,176.66,176.64,12.2491344]
[1748347782211,1.41514774,176.66,176.65,12.2491344]
[1748347783202,1.98075834,176.7,176.65,12.2491344]
[1748347783397,1.98075834,176.7,176.66,12.2491344]
[1748347783587,1.98075834,176.7,176.67,12.2491344]
[1748347783788,4.81041312,176.7,176.65,0.14216157]
[1748347784026,12.2491344,176.69,176.66,35.58]
[1748347784313,12.2491344,176.68,176.66,35.58]
[1748347784696,12.2491344,176.69,176.66,35.58]
[1748347784886,4.81041312,176.7,176.62,26.0]
[1748347784887,12.2491344,176.67,176.62,38.2491344]
[1748347785212,1.98120683,176.66,176.62,73.8291344]
[1748347787227,17.06063671,176.66,176.6,26.14216157]
[1748347787528,17.06063671,176.66,176.61,47.8091344]
[1748347788017,1.98120683,176.66,176.63,12.2491344]
[1748347788325,1.98120683,176.66,176.62,12.2491344]
[1748347791803,1.98120683,176.66,176.63,12.2491344]
[1748347793224,1.41514774,176.66,176.63,12.2491344]
[1748347794322,12.2491344,176.65,176.6,35.52]
[1748347794516,12.2491344,176.65,176.6,71.04]
[1748347794819,12.2491344,176.64,176.6,9.52]
[1748347795319,14.23067772,176.63,176.6,9.52]
[1748347796202,17.06145391,176.63,176.58,47.7491344]
[1748347796728,17.06145391,176.63,176.58,47.7691344]
[1748347797399,17.06145391,176.63,176.58,35.52]
[1748347797400,12.2491344,176.62,176.58,35.52]
[1748347797604,4.81231951,176.63,176.58,35.52]
[1748347797605,17.06145391,176.63,176.58,35.52]
[1748347797885,17.06145391,176.63,176.58,47.7691344]
[1748347798538,17.06145391,176.63,176.58,47.7491344]
[1748347799836,4.81231951,176.63,176.58,35.5]
[1748347799998,17.06145391,176.63,176.58,47.7491344]
[1748347801237,12.2491344,176.61,176.55,35.52]
[1748347801530,12.2491344,176.59,176.55,9.52]
[1748347802107,7.07694047,176.63,176.5,5.752746]
[1748347802108,12.2491344,176.56,176.5,5.752746]
[1748347802304,12.2491344,176.53,176.5,5.752746]
[1748347803539,0.56650804,176.52,176.5,5.752746]
[1748347804220,12.2491344,176.51,176.5,5.752746]
[1748347804435,0.56650804,176.52,176.5,5.752746]
[1748347804609,12.81564244,176.52,176.5,5.752746]
[1748347805219,12.2491344,176.51,176.5,5.752746]
[1748347805426,12.81567453,176.51,176.5,5.752746]
[1748347805619,0.56654013,176.51,176.5,5.752746]
[1748347808336,0.56650804,176.52,176.5,5.752746]
[1748347808710,0.56650804,176.52,176.5,18.0018804]
[1748347808912,0.56650804,176.52,176.5,41.532746]
[1748347809113,0.56650804,176.52,176.5,53.7818804]
[1748347809742,0.56650804,176.52,176.51,12.2491344]
[1748347810114,0.56650804,176.52,176.51,12.39129597]
[1748347810317,2.83203876,176.56,176.51,12.39129597]
[1748347810536,2.83203876,176.56,176.53,12.2491344]
[1748347810726,2.83203876,176.56,176.51,0.14216157]
[1748347811138,2.83203876,176.56,176.51,12.2491344]
[1748347811342,2.83203876,176.56,176.52,12.2491344]
[1748347812133,2.83203876,176.56,176.5,77.052746]
[1748347812452,4.81436771,176.56,176.52,12.2491344]
[1748347815153,2.83203876,176.56,176.53,12.2491344]
[1748347816452,2.83203876,176.56,176.52,12.2491344]
[1748347816928,2.83203876,176.56,176.53,12.2491344]
[1748347817126,2.83203876,176.56,176.52,12.2491344]
[1748347817738,1.548,176.53,176.5,5.752746]
[1748347818026,12.2491344,176.51,176.5,5.752746]
[1748347818333,1.548,176.53,176.5,5.752746]
[1748347818540,12.2491344,176.51,176.5,5.752746]
[1748347819177,12.81567453,176.51,176.5,5.752746]
[1748347822760,38.81567453,176.51,176.5,5.752746]
[1748347823159,12.81567453,176.51,176.5,5.752746]
[1748347824532,0.56654013,176.51,176.5,5.752746]
[1748347824739,26.56654013,176.51,176.5,5.752746]
[1748347824941,0.56654013,176.51,176.5,5.752746]
[1748347830040,0.56650804,176.52,176.5,5.752746]
[1748347833170,12.81564244,176.52,176.5,5.752746]
[1748347833374,12.2491344,176.51,176.5,5.752746]
[1748347833664,0.56650804,176.52,176.5,5.752746]
[1748347833874,12.2491344,176.51,176.5,5.752746]
[1748347834888,12.81564244,176.52,176.5,5.752746]
[1748347835678,0.56650804,176.52,176.5,5.752746]
[1748347839779,12.81564244,176.52,176.5,5.752746]
[1748347839985,0.56650804,176.52,176.5,18.0018804]
[1748347840186,0.56650804,176.52,176.51,12.2491344]
[1748347840486,0.56650804,176.52,176.5,5.752746]
[1748347840997,0.56650804,176.52,176.5,18.0018804]
[1748347841771,0.56650804,176.52,176.51,12.2491344]
[1748347841970,1.41617741,176.54,176.5,18.0018804]
[1748347843272,1.41617741,176.54,176.5,5.752746]
[1748347843480,12.2491344,176.53,176.5,5.752746]
[1748347843989,13.66531181,176.54,176.5,5.752746]
[1748347844965,12.2491344,176.53,176.5,5.752746]
[1748347845169,0.56650804,176.52,176.5,5.752746]
[1748347847394,0.56647595,176.53,176.5,18.0018804]
[1748347847971,0.56647595,176.53,176.51,12.2491344]
[1748347848698,0.56647595,176.53,176.5,5.752746]
[1748347848866,0.56647595,176.53,176.51,12.2491344]
[1748347849291,1.41617741,176.54,176.51,12.2491344]
[1748347852292,1.41617741,176.54,176.5,5.752746]
[1748347852504,1.41617741,176.54,176.5,18.0018804]
[1748347854197,1.98262127,176.54,176.5,18.0018804]
[1748347855398,1.98262127,176.54,176.5,5.752746]
[1748347855698,1.98262127,176.54,176.5,18.0018804]
[1748347856470,1.41617741,176.54,176.5,18.0018804]
[1748347857996,1.41617741,176.54,176.51,12.2491344]
[1748347860577,1.41617741,176.54,176.53,12.2491344]
[1748347860779,1.41617741,176.54,176.53,12.39129597]
[1748347861396,1.41617741,176.54,176.53,0.14216157]
[1748347861605,1.41617741,176.54,176.53,12.39129597]
[1748347862501,2.83144736,176.59,176.54,0.14216157]
[1748347862806,2.83144736,176.59,176.56,12.2491344]
[1748347866186,2.83144736,176.59,176.57,12.2491344]
[1748347867613,2.83144736,176.59,176.58,12.2491344]
[1748347869299,1.41562853,176.6,176.58,12.2491344]
[1748347869610,1.41562853,176.6,176.59,12.2491344]
[1748347869792,1.41562853,176.6,176.58,12.2491344]
[1748347869996,1.41562853,176.6,176.59,12.2491344]
[1748347870320,1.41562853,176.6,176.58,12.2491344]
[1748347870813,1.41562853,176.6,176.59,12.2491344]
[1748347871387,2.83077619,176.63,176.59,12.2491344]
[1748347871582,2.83077619,176.63,176.62,12.2491344]
[1748347872412,2.83077619,176.63,176.57,26.14216157]
[1748347872587,2.83077619,176.63,176.56,0.14216157]
[1748347872588,15.07991059,176.63,176.56,0.14216157]
[1748347872788,2.83077619,176.63,176.56,0.14216157]
[1748347873020,2.83077619,176.63,176.59,12.2491344]
[1748347874605,4.81231951,176.63,176.59,12.2491344]
[1748347879819,4.81231951,176.63,176.58,12.2491344]
[1748347881131,4.81231951,176.63,176.59,12.2491344]
[1748347882622,4.24616428,176.63,176.59,12.2491344]
[1748347885012,4.81231951,176.63,176.59,12.2491344]
[1748347886323,4.81231951,176.63,176.55,10.08]
[1748347886628,4.81231951,176.63,176.59,12.2491344]
[1748347887127,4.24616428,176.63,176.59,12.2491344]
[1748347887627,4.24616428,176.63,176.55,10.08]
[1748347887799,4.24616428,176.63,176.58,12.2491344]
[1748347888001,4.24616428,176.63,176.59,12.2491344]
[1748347888532,4.24616428,176.63,176.6,12.2491344]
[1748347888823,4.24616428,176.63,176.55,10.08]
[1748347888824,1.41538809,176.63,176.62,12.2491344]
[1748347891520,1.41538809,176.63,176.57,0.14216157]
[1748347891697,1.41538809,176.63,176.62,12.2491344]
[1748347892330,1.41538809,176.63,176.58,26.0]
[1748347892631,1.41538809,176.63,176.62,12.2491344]
[1748347893416,1.41538809,176.63,176.57,0.14216157]
[1748347893619,1.41538809,176.63,176.6,12.2491344]
[1748347894219,1.41538809,176.63,176.57,0.14216157]
[1748347894220,1.41538809,176.63,176.61,12.2491344]
[1748347894613,1.41538809,176.63,176.59,12.2491344]
[1748347895637,1.98154332,176.63,176.59,12.2491344]
[1748347896018,4.81231951,176.63,176.6,12.2491344]
[1748347896920,4.81231951,176.63,176.59,12.2491344]
[1748347898110,4.81231951,176.63,176.57,12.2491344]
[1748347898111,12.2491344,176.62,176.57,12.2491344]